Cogmind - Beta 14 @@@ ROGUE MODE // 2024.12.31 @ 11:59:24 Player: Tereza Result: Destroyed by JP-OXX(R) with Subdweller Machine Gun Performance ------------- Evolutions (0) 0 Regions Visited (3) 600 Robots Destroyed (32) 160 Value Destroyed (699) 699 Prototype IDs (0) 0 Alien Tech Used (0) 0 Bonus (0) 0 TOTAL SCORE: 1459 Bonus ------- None Cogmind --------- Core Integrity 0/250 Matter 192/300 Energy 91/100 System Corruption 2% Temperature Cool (0) Movement Rolling (175) Ox5 Location -10/Subcaves Parts ------- > --- POWER (1) -------- (None) > --- PROPULSION (2) --- Light Treads Compact Wheel > --- UTILITY (2) ------ Huge Storage Unit Sensor Array > --- WEAPON (2) ------- Beam Cannon Battle Rifle > --- INVENTORY (25) --- Light Ion Engine Light Treads Compact Wheel Compact Wheel Sensor Array Sensor Array Light Armor Plating Light Armor Plating Light Armor Plating Scrap Shield Small Laser Assault Rifle Light Assault Rifle Light Assault Rifle Light Assault Rifle Light Assault Rifle Heavy Assault Rifle Subdweller Machine Gun Rocket Launcher Datajack Datajack Scrap Shield Fragment (48) Peak State ------------ > --- POWER ------------ (None) > --- PROPULSION ------- Light Treads Light Treads > --- UTILITY ---------- Huge Storage Unit Sensor Array > --- WEAPON ----------- Beam Cannon Subdweller Machine Gun > --- INVENTORY -------- Light Ion Engine Light Treads Compact Wheel Compact Wheel Compact Wheel Sensor Array Sensor Array Light Armor Plating Light Armor Plating Light Armor Plating Scrap Shield Small Laser Assault Rifle Light Assault Rifle Light Assault Rifle Light Assault Rifle Light Assault Rifle Heavy Assault Rifle Battle Rifle Rocket Launcher Datajack Datajack Scrap Shield Fragment [Rating: 10] Favorites ----------- Power Ion Engine Engine Ion Engine Propulsion Light Treads Treads Light Treads Wheel Compact Wheel Utility Huge Storage Unit Device Sensor Array Storage Huge Storage Unit Protection Light Armor Plating Weapon Light Cannon Energy Cannon Beam Cannon Ballistic Gun Light Assault Rifle Ballistic Cannon Light Cannon Build | -11 -10 -10 -10 ------- Run | Yrd Mat Min Sub Slots Evolved . | . . . . Power . | . . . . Propulsion . | . . . . Utility . | . . . . Weapon . | . . . . Parts Attached 24 | 5 9 3 7 Power 2 | 1 1 . . Engine 2 | 1 1 . . Core . | . . . . Reactor . | . . . . Propulsion 7 | 1 3 1 2 Treads 6 | 1 3 1 1 Leg . | . . . . Wheel 1 | . . . 1 Hover . | . . . . Flight . | . . . . Utility 6 | 1 2 1 2 Device 2 | . . 1 1 Storage 3 | 1 2 . . Processor . | . . . . Hackware . | . . . . Protection 1 | . . . 1 Artifact . | . . . . Weapon 9 | 2 3 1 3 Energy Gun . | . . . . Energy Cannon 1 | . . . 1 Ballistic Gun 7 | 2 2 1 2 Ballistic Cannon 1 | . 1 . . Launcher . | . . . . Special Weapon . | . . . . Impact Weapon . | . . . . Slashing Weapon . | . . . . Piercing Weapon . | . . . . Special Melee Weapon . | . . . . Unidentified Prototypes . | . . . . Parts Lost 7 | . 2 2 3 Power 1 | . 1 . . Propulsion 3 | . . 1 2 Utility . | . . . . Weapon 3 | . 1 1 1 Highest Loss Streak 2 | . 1 2 1 To Critical Strikes . | . . . . Average Slot Usage (%) 83 | . 82 82 84 Engine 3 | . 12 . . Treads 27 | . 27 27 26 Device 7 | . . 11 10 Storage 14 | . 14 14 14 Protection 1 | . . . 3 Energy Cannon 6 | . . . 13 Ballistic Gun 15 | . 18 13 14 Ballistic Cannon 6 | . 9 14 . Peak Build Rating 10 | 5 8 8 10 Average Rating 7 | 3 6 7 9 On Entrance 4 | . 5 6 8 Naked Turns . | . . . . Heaviest Build 89 | 12 89 86 88 Greatest Support 40 | 20 40 40 40 Greatest Overweight (x) 5 | 3 2 4 5 Average Overweight (x) 1 | . . 2 2 Largest Inventory Capacity 25 | 8 25 25 25 Average Capacity 23 | 7 19 25 25 Most Carried 24 | 5 18 21 24 Average Carried 18 | 3 13 17 23 Final Capacity 25 | 8 25 25 25 Final Carried 23 | 5 18 21 23 Class Distribution -------------------- 100% | Mutant Dominant Class ---------------- Mutant | -10/Materials Mutant | -10/Mines Mutant | -10/Subcaves Resources | -11 -10 -10 -10 ----------- Run | Yrd Mat Min Sub Matter Collected 873 | 189 401 140 143 Remotely . | . . . . Salvage Created 1140 | . 738 244 158 Parts 71 | . 51 9 11 Haulers Intercepted 2 | . 2 . . Recyclers Shooed 1 | . 1 . . Parts Field Recycled . | . . . . Retrieved Matter . | . . . . Parts Self-Destructed 20 | . . . 20 Prevented . | . . . . Kills | -11 -10 -10 -10 ------- Run | Yrd Mat Min Sub Combat Hostiles Destroyed 22 | . 13 6 3 Guns 15 | . 9 4 2 Cannons 7 | . 4 2 1 Classes Destroyed 7 | . 6 . 1 Tunneler 1 | . 1 . . Hauler 2 | . 2 . . Recycler 5 | . 4 1 . Watcher 2 | . 2 . . Swarmer 8 | . 5 3 . Grunt 11 | . 8 3 . Subdweller 3 | . . . 3 Best Kill Streak 6 | . 6 4 1 Combat Bots Only 3 | . 3 3 1 Max Kills in Single Turn 1 | . 1 1 1 Gunslinging . | . . . . Exploded . | . . . . Melee . | . . . . Uniques/NPCs Destroyed . | . . . . Combat | -11 -10 -10 -10 -------- Run | Yrd Mat Min Sub Hostile Shots Fired 137 | . 83 33 21 Missed 36 | . 25 5 6 Damage Taken 1350 | . 685 300 365 Core 255 | . 88 18 149 Absorbed by Shields . | . . . . Regen/Repaired (Parts) 121 | . 121 . . Core Remaining (%) 100 | 100 . . . Volleys Fired 117 | . 74 16 27 Largest 2 | . 2 2 2 Hottest 85 | . 55 55 85 Shots Fired 224 | . 148 32 44 Gun 159 | . 116 16 27 Cannon 65 | . 32 16 17 Launcher . | . . . . Special . | . . . . Kinetic 207 | . 148 32 27 Thermal 17 | . . . 17 Explosive . | . . . . Electromagnetic . | . . . . Robot Hit Streak 14 | . 14 5 8 Robot Miss Streak 7 | . 7 3 2 Penetration Max . | . . . . Secondary Targets 1 | . 1 . . Max Gunslinging Chain 1 | . 1 . . Shots Hit Robots 128 | . 88 17 23 Core Hits 59 | . 42 11 6 Critical Kills 1 | . 1 . . Critical Parts Destroyed . | . . . . Critical Strikes 2 | . 2 . . Destroy 1 | . 1 . . Blast 1 | . 1 . . Melee Attacks . | . . . . Impact . | . . . . Slashing . | . . . . Piercing . | . . . . Sneak Attacks . | . . . . Combat Hostiles . | . . . . Follow-up Attacks . | . . . . Damage Inflicted 1598 | . 959 305 334 Guns 884 | . 593 148 143 Cannons 707 | . 364 152 191 Explosions . | . . . . Melee . | . . . . Ramming 7 | . 2 5 . Kinetic 1400 | . 957 300 143 Thermal 191 | . . . 191 Explosive . | . . . . Electromagnetic . | . . . . Impact . | . . . . Slashing . | . . . . Piercing . | . . . . Highest Corruption 2 | . 2 2 2 Average Corruption 2 | . 2 2 2 Corruption Purged . | . . . . Corruption Blocked . | . . . . Effects 62 | . 10 21 31 Message Errors 17 | . 3 9 5 Matter Fused 19 | . 3 6 10 Heat Flow Errors 2 | . . 2 . Energy Discharges 8 | . 1 1 6 Data Loss (minor) 8 | . . 2 6 Data Loss (major) 2 | . . 1 1 Misfires 4 | . 1 . 3 Alerts 1 | . 1 . . Weapon Failures 1 | . 1 . . Overload Shots . | . . . . Overflow Damage . | . . . . Projectiles . | . . . . Explosions . | . . . . Melee . | . . . . Knockbacks 5 | . 2 3 . Impact . | . . . . Kinetic 4 | . 2 2 . Secondary 1 | . . 1 . Self-Inflicted Damage . | . . . . Shots . | . . . . Rammed 2 | . 1 1 . Targets Rammed 2 | . 1 1 . Kicked . | . . . . Crushed . | . . . . Highest Temperature 247 | . 59 247 6 Average Temperature 30 | . 14 77 5 Received Heat Transfer 429 | . 240 117 72 Siege Activations . | . . . . Robots Corrupted . | . . . . Combat Hostiles . | . . . . Parts Fried . | . . . . Impact Corruptions . | . . . . Robots Melted . | . . . . Combat Hostiles . | . . . . Parts Melted 2 | . . . 2 Heat Transferred 407 | . . . 407 Parts Sabotaged . | . . . . Parts Stolen . | . . . . Parts Stripped . | . . . . Power Chain Reactions . | . . . . Alert | -11 -10 -10 -10 ------- Run | Yrd Mat Min Sub Peak Influence 233 | . 233 120 . Initial 33 | . . 33 . Average 54 | . 90 22 . Maximum Alert Level 1 | . 1 . . Low Security (%) 99 | 100 98 100 . Level 1 . | . 1 . . Level 2 . | . . . . Level 3 . | . . . . Level 4 . | . . . . Level 5 . | . . . . High Security . | . . . . Max Security . | . . . . Squads Dispatched 2 | . 2 . . Investigation 1 | . 1 . . Extermination . | . . . . Reinforcement 1 | . 1 . . Assault . | . . . . Garrison . | . . . . Intercept . | . . . . Searches Triggered . | . . . . Construction Impeded . | . . . . Haulers Reinforced . | . . . . Active Scanning Responses . | . . . . Cargo Convoy Interrupts . | . . . . Stealth | -11 -10 -10 -10 --------- Run | Yrd Mat Min Sub Distress Signals 4 | . 4 . . Communications Jammed . | . . . . Distress Signals . | . . . . Times Spotted 49 | . 36 8 5 Peak Tracking Total 4 | . 4 2 2 Tactical Retreats 4 | . 3 1 . Traps | -11 -10 -10 -10 ------- Run | Yrd Mat Min Sub Traps Triggered 3 | . 3 . . Indirectly . | . . . . Trap Hack Attempts . | . . . . Triggered . | . . . . Disarmed . | . . . . Reprogrammed . | . . . . Reused . | . . . . Traps Extracted . | . . . . Installed . | . . . . Triggered . | . . . . Machines | -11 -10 -10 -10 ---------- Run | Yrd Mat Min Sub Machines Disabled . | . . . . Max in Single Turn . | . . . . Machines Repaired . | . . . . Machines Dismantled . | . . . . Machines Sabotaged . | . . . . Overloaded Fab Kills . | . . . . Hacking | -11 -10 -10 -10 --------- Run | Yrd Mat Min Sub Machines Accessed 8 | . 7 . 1 Terminals 5 | . 5 . . Fabricators . | . . . . Repair Stations 1 | . 1 . . Recycling Units 1 | . 1 . . Scanalyzers . | . . . . Garrison Access . | . . . . Total Hacks 30 | . 25 . 5 Successful 16 | . 11 . 5 Failed 14 | . 14 . . Catastrophic 2 | . 2 . . Database Lockouts . | . . . . Manual 22 | . 22 . . Terminals 22 | . 22 . . Fabricators . | . . . . Repair Stations 2 | . 2 . . Recycling Units 1 | . 1 . . Scanalyzers . | . . . . Garrison Access . | . . . . Terminal Hacks 13 | . 8 . 5 Record 5 | . . . 5 Part Schematic 1 | . 1 . . Robot Analysis 6 | . 6 . . Locate Traps 1 | . 1 . . Fabricator Hacks . | . . . . Repair Station Hacks 2 | . 2 . . Scan Component 1 | . 1 . . Repair 1 | . 1 . . Recycling Unit Hacks . | . . . . Scanalyzer . | . . . . Garrison Access Hacks . | . . . . Unauthorized Hacks 1 | . 1 . . Terminals . | . . . . Fabricators . | . . . . Repair Stations . | . . . . Recycling Units 1 | . 1 . . Reject 1 | . 1 . . Scanalyzers . | . . . . Garrison Access . | . . . . Data Cores Recovered . | . . . . Used . | . . . . Hacking Detections 5 | . 5 . . Full Trace Events 1 | . 1 . . Feedback Events . | . . . . Feedback Blocked . | . . . . Robot Schematics Acquired . | . . . . Robots Built . | . . . . Authchips . | . . . . Time . | . . . . Total Robot Build Rating . | . . . . Part Schematics Acquired 1 | . 1 . . Parts Built . | . . . . Authchips . | . . . . Time . | . . . . Total Part Build Rating . | . . . . Parts Repaired 1 | . 1 . . Time 26 | . 26 . . Parts Recycled . | . . . . Recycled Matter . | . . . . Retrieved Matter . | . . . . Retrieved Components . | . . . . Parts Scanalyzed . | . . . . Part Schematics Acquired . | . . . . Parts Damaged . | . . . . Bothacking | -11 -10 -10 -10 ------------ Run | Yrd Mat Min Sub Used RIF Installer . | . . . . Robots Hacked . | . . . . Non-combat . | . . . . Combat . | . . . . Robot Hacks Applied . | . . . . Relay Couplers Released . | . . . . Fabnet Peak Effective % . | . . . . Robots Rewired . | . . . . Allies Hacked . | . . . . Hacks Repelled . | . . . . Allies | -11 -10 -10 -10 -------- Run | Yrd Mat Min Sub Total Allies . | . . . . Largest Group . | . . . . Highest-Rated Group . | . . . . Highest-Rated Ally . | . . . . Total Orders . | . . . . Ally Attacks . | . . . . Total Damage . | . . . . Kills . | . . . . Allies Corrupted . | . . . . Allies Melted . | . . . . Intel | -11 -10 -10 -10 ------- Run | Yrd Mat Min Sub Robot Analysis Total 6 | . 6 . . Derelict Logs Recovered 2 | . . 1 1 Drone Launches . | . . . . Drone Recoveries . | . . . . Exploration | -11 -10 -10 -10 ------------- Run | Yrd Mat Min Sub Turns Passed 5388 | 59 1429 1568 2332 Spaces Moved 1724 | 35 526 397 766 Core 13 | 13 . . . Treads 1565 | 22 526 397 620 Legs . | . . . . Wheels 146 | . . . 146 Hover . | . . . . Flight . | . . . . Fastest Speed 50 | 50 160 320 175 Average Speed 272 | 136 216 320 293 Slowest Speed 480 | 200 320 480 480 Overloaded Moves . | . . . . Propulsion Burnouts . | . . . . Robots Hopped . | . . . . Cave-ins Triggered . | . . . . Exploration Rate (%) 51 | 5 95 69 38 Regions Visited 3 Branch Regions 2 Pre-discovered Areas 1 | . . . 1 Known Exits Taken . | . . . . Unknown Exits Taken 3 | 1 1 1 . Scrap Searched . | . . . . Spaces Dug . | . . . . Terrain Destroyed . | . . . . Melee . | . . . . Projectile . | . . . . AOE . | . . . . Terrain Rammed . | . . . . Walls Destroyed . | . . . . Machines Disabled . | . . . . Actions | -11 -10 -10 -10 --------- Run | Yrd Mat Min Sub Total 2205 | 44 690 662 809 Wait 307 | . 66 236 5 Move 1721 | 34 525 396 766 Hop . | . . . . Pick Up 30 | 5 13 8 4 Fast Attach 12 | 5 7 . . Attach 8 | . 2 3 3 Detach 2 | . 2 . . Swap 4 | . . . 4 Drop 2 | . . 2 . Fire 117 | . 74 16 27 Melee . | . . . . Ram . | . . . . Kick . | . . . . Crush 2 | . 1 1 . Escape Stasis . | . . . . Rewire . | . . . . Trap . | . . . . Miscellaneous . | . . . . Route ------- -11/Scrapyard -10/Materials (discovered 5 exits: [*Mat x3] / [*Min x2]) -10/Mines (discovered 4 exits: [*Mat x2] / [*Exi] / *Sub) -10/Subcaves (discovered 3 exits: *Mat x2 / Rec) History --------- Turn | Location | Event 17 | -11/Scrapyard | Discovered new exit (range 15) 60 | -11/Scrapyard | Entered Materials 282 | -10/Materials | Discovered new exit (range 14) 306 | -10/Materials | Build established: Mutant 342 | -10/Materials | Discovered new exit (range 15) 642 | -10/Materials | Repaired Lgt. Treads 755 | -10/Materials | Discovered new exit (range 6) 966 | -10/Materials | Discovered new exit (range 4) 1429 | -10/Materials | Discovered new exit (range 16) 1489 | -10/Materials | Entered Mines 1587 | -10/Mines | Discovered new exit (range 9) 1655 | -10/Mines | Discovered new exit (range 8) 1899 | -10/Mines | Deemed a non-threat by the Exiles lab entrance 1899 | -10/Mines | Discovered new exit (range 5) 2088 | -10/Mines | Learned Materials emergency access door positions 2460 | -10/Mines | Joined a pair of Derelicts in attacking an 0b10 outpost 2738 | -10/Mines | Received a Rocket Launcher from a helpful Derelict 3044 | -10/Mines | Discovered new exit (range 4) 3057 | -10/Mines | Entered Subcaves 3059 | -10/Subcaves | Ambushed by Subdwellers from Twisted Machinery 3068 | -10/Subcaves | Learned location of Zion (-7) 3068 | -10/Subcaves | Met a Zionite searching for "candidates" 3082 | -10/Subcaves | Core integrity fell below 50% 3109 | -10/Subcaves | Discovered new exit (range 5) 3201 | -10/Subcaves | Shifting Twisted Machinery released Piercing Trap 3274 | -10/Subcaves | A swath of the cavern ceiling suddenly collapsed 3840 | -10/Subcaves | Learned Materials terminal intel 3860 | -10/Subcaves | Shifting Twisted Machinery released Sub. Beam Cannon 3867 | -10/Subcaves | Shifting Twisted Machinery released Multitool 3911 | -10/Subcaves | A swath of the cavern ceiling suddenly collapsed 4149 | -10/Subcaves | Visited Clippyterm 4159 | -10/Subcaves | Identified exit to Recycling 4159 | -10/Subcaves | Identified exit to Materials 4159 | -10/Subcaves | Learned Factory stockpile data 5098 | -10/Subcaves | Core integrity fell below 20% 5389 | -10/Subcaves | Destroyed by JP-OXX(R) with Subdweller Machine Gun Last Messages --------------- 04825_ System corrupted: Component data lost. 04980_ System corrupted: Energy discharge (-29). 05005_ System corrupted: Energy discharge (-26). 05032_ System corrupted: FCS attempts to trigger Beam Cannon. 05032_ System corrupted: Beam Cannon misfires. 05093_ Lgt. Treads destroyed. 05100_ Disposable Heat Sink melted. 05100_ C3-DIZ(R) destroyed. 05105_ Subatomizers dissect the Sub. Power Source. 05107_ Acquired 57 matter. 05111_ System corrupted: Component data lost. 05119_ Subatomizers dissect the Sub. Power Source. 05142_ System corrupted: Matter fused (-9). 05153_ Subatomizers dissect the Sub. Power Source. 05162_ System corrupted: Component data lost. 05187_ System corrupted: Energy discharge (-26). Map ----- +----------------------------------------------------+ | ## #???????????????????????????????## | | ### ## #????????????????????????????????## | | ??##### ##????????????????????????????????## | | ???????# " ##?????????????????????????????????# | | ???????##"#"#??????????????????????????????????# | | ????????# ###?????????????????????????????????## | | ???????### ##?????????????????????????????????# | | ???????? ##"####??????????????????????????????# | | ????????##"##"##??????????????????????????????# | | ????????#""#"#"#??????????????????????????????# | | ????????##""####??????????????????????????????# # | | ????????### ##???????????????????????????????## # | | ?????????#"#"#####???????????????????????????# # | | ?????????## " # ##????????????####?###??????# | | ??????????##|"" #???????????## #?????## # | | ?#????????#####" #??????????## ? #??????# # | | # ???#####"## ] #????????### ? ####???# | | ??# # # ####??###?# ?? ###?# | | ?# ### # # ## #### #??# #? ### | | ???# "# ### #??? #?# ## | | ???# #?# #????# ### ## | | ???#" ### # # #?????# ## | | ??# #"# ## ## # ##?????# ## | | ? #?#### R ######## #?# | | ??????##" ## ##?# | | ?????????#### ### @ #### # | | ??